Cogmind - Beta 15 @@@ ROGUE MODE // 2025.07.14 @ 18:41:20 Player: Sinthome Result: Destroyed by B-60 Warrior with Heavy Mace Performance ------------- Evolutions (6) 3000 Regions Visited (12) 2400 Robots Destroyed (44) 220 Value Destroyed (881) 881 Prototype IDs (6) 120 Alien Tech Used (0) 0 Bonus (0) 0 TOTAL SCORE: 6621 Bonus ------- None Cogmind --------- Core Integrity 0/1150 Matter 48/300 Energy 94/100 System Corruption 4% Temperature Cool (0) Movement Core (50) Location -4/Hub_04(d) Parts ------- > --- POWER (2) -------- (None) > --- PROPULSION (7) --- (None) > --- UTILITY (7) ------ (None) > --- WEAPON (3) ------- (None) > --- INVENTORY (5) ---- Quantum Capacitor Hardcell Cannon Peak State ------------ > --- POWER ------------ Antimatter Reactor > --- PROPULSION ------- Improved Flight Unit Xenon Bombardment Thruster Biomechanical Wings Biomechanical Wings Biomechanical Wings Impulse Thruster Impulse Thruster > --- UTILITY ---------- Quantum Capacitor > --- WEAPON ----------- Improved Arc Projector Mass Driver > --- INVENTORY -------- Improved Cesium-ion Thruster Improved Focal Shield [Rating: 73] Favorites ----------- Power Light Nuclear Core Engine Light Deuterium Engine Power Core Light Nuclear Core Reactor Antimatter Reactor Propulsion Improved Flight Unit Leg Aluminum Leg Wheel Compact Wheel Flight Unit Improved Flight Unit Utility Weight Redist. System Device Weight Redist. System Storage Medium Storage Unit Processor Signal Interpreter Protection Weapon Shielding Weapon Mace Energy Gun Small Laser Ballistic Gun Light Assault Rifle Ballistic Cannon Mass Driver Launcher Improved Grenade Launcher Impact Weapon Mace Build | -11 -10 -10 -9 -8 -7 -6 -5 -4 -4 -4 -4 -4 ------- Run | Yrd Mat Min Mat Mat Fac Fac Fac Fac Ext Cet Arc Hub Slots Evolved 12 | . . . 2 2 2 2 2 2 . . . . Power 1 | . . . . . . . 1 . . . . . Propulsion 5 | . . . 1 1 1 1 1 . . . . . Utility 5 | . . . 1 1 1 1 . 1 . . . . Weapon 1 | . . . . . . . . 1 . . . . Parts Attached 68 | 7 8 . 12 3 14 11 3 7 2 . . 1 Power 8 | 1 1 . 1 . 2 1 1 1 . . . . Engine 3 | 1 1 . . . 1 . . . . . . . Core 4 | . . . 1 . 1 1 1 . . . . . Reactor 1 | . . . . . . . . 1 . . . . Propulsion 29 | 3 5 . 3 . 8 5 2 3 . . . . Treads . | . . . . . . . . . . . . . Leg 2 | 2 . . . . . . . . . . . . Wheel 1 | 1 . . . . . . . . . . . . Hover . | . . . . . . . . . . . . . Flight 26 | . 5 . 3 . 8 5 2 3 . . . . Utility 17 | 1 . . 6 2 3 3 . 1 . . . 1 Device 13 | . . . 4 1 3 3 . 1 . . . 1 Storage 2 | 1 . . 1 . . . . . . . . . Processor 1 | . . . 1 . . . . . . . . . Hackware . | . . . . . . . . . . . . . Protection 1 | . . . . 1 . . . . . . . . Artifact . | . . . . . . . . . . . . . Weapon 14 | 2 2 . 2 1 1 2 . 2 2 . . . Energy Gun 5 | 1 . . 1 . . 1 . 1 1 . . . Energy Cannon . | . . . . . . . . . . . . . Ballistic Gun 2 | 1 1 . . . . . . . . . . . Ballistic Cannon 2 | . . . . . . . . 1 1 . . . Launcher 3 | . . . 1 1 . 1 . . . . . . Special Weapon . | . . . . . . . . . . . . . Impact Weapon 2 | . 1 . . . 1 . . . . . . . Slashing Weapon . | . . . . . . . . . . . . . Piercing Weapon . | . . . . . . . . . . . . . Special Melee Weapon . | . . . . . . . . . . . . . Unidentified Prototypes 5 | . . . 1 . . 3 1 . . . . . Parts Lost 34 | . 3 . . 2 1 9 6 4 5 1 . 3 Power 3 | . 1 . . . . 1 . . 1 . . . Propulsion 18 | . 2 . . 1 . 6 1 2 4 . . 2 Utility 8 | . . . . 1 1 1 4 . . . . 1 Weapon 5 | . . . . . . 1 1 2 . 1 . . Highest Loss Streak 9 | . 2 . . 1 1 9 4 4 5 6 . 3 To Critical Strikes . | . . . . . . . . . . . . . Average Backups 5 | 3 5 5 6 8 9 5 4 1 2 3 4 3 Power . | . 1 . . 1 1 . . . . . . . Propulsion 1 | 1 2 3 2 . 1 . 2 . 1 1 1 . Utility 1 | . . 1 3 4 2 . . . 1 1 2 1 Weapon 1 | . 1 1 . 2 3 2 . . . 1 1 1 Tool/Special . | . . . . . . . . . . . . . Unused Backups 21 | . 3 . 5 . 8 3 2 . . . . . Power 1 | . . . . . 1 . . . . . . . Propulsion 5 | . 3 . 1 . . . 1 . . . . . Utility 8 | . . . 3 . 4 1 . . . . . . Weapon 6 | . . . 1 . 3 2 . . . . . . Tool/Special 1 | . . . . . . . 1 . . . . . Average Slot Usage (%) 72 | . 66 71 91 95 98 65 64 42 23 8 5 10 Engine 3 | . 9 14 11 . 3 1 . . . . . . Core 2 | . . . . 9 3 1 3 . . . . . Flight 27 | . 16 28 31 36 38 19 32 32 16 5 5 7 Device 12 | . . . 14 8 19 22 14 4 5 1 . 2 Storage 3 | . 4 . 3 9 7 1 . . . . . . Processor 4 | . . . 8 9 7 6 4 . . . . . Protection 1 | . . . . 7 1 . . . . . . . Energy Gun 1 | . 2 . 3 . . 2 . . . 2 . . Ballistic Gun 2 | . 14 14 6 . . . . . . . . . Launcher 3 | . . . . 7 7 2 3 . . . . . Impact Weapon 6 | . 11 14 11 9 7 6 3 . . . . . Peak Build Rating 73 | 6 7 7 18 22 43 59 59 73 54 26 9 19 Average Rating 27 | 3 5 7 13 21 36 35 46 54 37 10 9 14 On Entrance 22 | . 6 7 7 17 22 39 59 24 54 33 9 9 Naked Turns . | . . . . . . . . . . . . . Heaviest Build 32 | 12 13 8 18 24 31 32 19 30 21 4 . 2 Greatest Support 43 | 20 20 8 20 24 34 40 29 43 32 6 6 6 Greatest Overweight (x) 3 | 1 1 . . 1 1 2 . . 3 . . . Average Overweight (x) . | . . . . . . . . . . . . . Largest Inventory Capacity 10 | 8 8 5 10 10 10 10 5 5 5 5 5 5 Average Capacity 7 | 6 5 5 6 10 10 6 5 5 5 5 5 5 Most Carried 10 | 5 7 5 10 10 10 9 5 2 2 5 5 5 Average Carried 6 | 3 5 5 6 8 9 5 3 1 2 4 5 3 Final Capacity 10 | 8 5 5 10 10 10 5 5 5 5 5 5 5 Final Carried 10 | 5 5 5 10 9 10 5 1 2 2 5 5 3 Class Distribution -------------------- 52% | Mutant 25% | Sprinter 21% | Scavenger-Sprinter Dominant Class ---------------- Mutant | -10/Materials Mutant | -10/Mines Mutant | -9/Materials Scavenger-Sprinter | -8/Materials Scavenger-Sprinter | -7/Factory Mutant | -6/Factory Sprinter | -5/Factory Sprinter | -4/Factory Mutant | -4/Extension Mutant | -4/Cetus Mutant | -4/Archives Mutant | -4/Hub_04(d) Resources | -11 -10 -10 -9 -8 -7 -6 -5 -4 -4 -4 -4 -4 ----------- Run | Yrd Mat Min Mat Mat Fac Fac Fac Fac Ext Cet Arc Hub Matter Collected 790 | 238 52 . . 76 230 111 68 . 12 . . 3 Remotely . | . . . . . . . . . . . . . Salvage Created 763 | . 81 . 89 77 261 169 66 20 . . . . Parts 55 | . 8 . 5 8 20 10 . 4 . . . . Haulers Intercepted 2 | . . . 1 . . 1 . . . . . . Recyclers Shooed . | . . . . . . . . . . . . . Parts Field Recycled . | . . . . . . . . . . . . . Retrieved Matter . | . . . . . . . . . . . . . Parts Self-Destructed . | . . . . . . . . . . . . . Prevented . | . . . . . . . . . . . . . Kills | -11 -10 -10 -9 -8 -7 -6 -5 -4 -4 -4 -4 -4 ------- Run | Yrd Mat Min Mat Mat Fac Fac Fac Fac Ext Cet Arc Hub Combat Hostiles Destroyed 33 | . 6 . 3 7 6 5 2 4 . . . . Melee 9 | . 3 . 2 2 1 . 1 . . . . . Guns 3 | . 3 . . . . . . . . . . . AOE 17 | . . . . 4 4 5 . 4 . . . . Classes Destroyed 7 | . 1 . 1 1 3 . 1 . . . . . Worker 5 | . . . . 1 3 1 . . . . . . Builder 2 | . . . . . 1 1 . . . . . . Hauler 2 | . . . 1 . . 1 . . . . . . Recycler 1 | . . . . . 1 . . . . . . . Mechanic 1 | . . . . . 1 . . . . . . . Swarmer 31 | . 6 . 3 7 6 5 . 4 . . . . Cutter 2 | . . . . . . . 2 . . . . . Best Kill Streak 5 | . 3 . 3 5 4 5 1 4 . . . . Combat Bots Only 5 | . 3 . 3 4 3 5 2 4 . . . . Max Kills in Single Turn 3 | . 1 . 1 3 2 2 1 3 . . . . Gunslinging . | . . . . . . . . . . . . . Exploded 3 | . . . . 2 2 2 . 3 . . . . Melee 1 | . 1 . 1 1 1 . 1 . . . . . Uniques/NPCs Destroyed . | . . . . . . . . . . . . . Combat | -11 -10 -10 -9 -8 -7 -6 -5 -4 -4 -4 -4 -4 -------- Run | Yrd Mat Min Mat Mat Fac Fac Fac Fac Ext Cet Arc Hub Hostile Shots Fired 406 | . 69 2 21 40 32 55 40 25 68 19 19 16 Missed 195 | . 19 1 12 16 23 26 23 9 30 12 13 11 Hits 211 | . 50 1 9 24 9 29 17 16 38 7 6 5 Melee 15 | . . . . . . . 13 . . . . 2 Projectile 196 | . 50 1 9 24 9 29 4 16 38 7 6 3 AOE 7 | . . . . . 1 2 4 . . . . . Critical Strikes 13 | . 2 . . . . 1 7 1 1 1 . . Damage Taken 4385 | . 411 14 88 290 251 682 599 650 841 204 166 189 Core 2128 | . 157 14 29 103 103 260 290 213 502 171 166 120 Absorbed by Shields . | . . . . . . . . . . . . . Redirected to Shielding 33 | . . . . 25 8 . . . . . . . Ignored by Resistances 39 | . . . . . . . . . . . . 39 Core Remaining (%) 75 | 100 . 31 92 81 85 69 71 . . . . . Volleys Fired 48 | . 34 . 1 2 2 7 . 2 . . . . Largest 2 | . 1 . 1 1 1 1 . 2 . . . . Hottest 112 | . 23 . 23 36 36 55 . 112 . . . . Shots Fired 49 | . 34 . 1 2 2 7 . 3 . . . . Gun 40 | . 34 . 1 . . 4 . 1 . . . . Cannon 2 | . . . . . . . . 2 . . . . Launcher 7 | . . . . 2 2 3 . . . . . . Special . | . . . . . . . . . . . . . Kinetic 37 | . 34 . 1 . . . . 2 . . . . Thermal . | . . . . . . . . . . . . . Explosive 7 | . . . . 2 2 3 . . . . . . Electromagnetic 5 | . . . . . . 4 . 1 . . . . Robot Hit Streak 5 | . 4 . 2 . 1 5 . . . . . . Robot Miss Streak 7 | . 7 . . 1 . . . . . . . . Penetration Max . | . . . . . . . . . . . . . Secondary Targets . | . . . . . . . . . . . . . Shots Hit Robots 53 | . 20 . 6 6 15 6 . . . . . . Core Hits 45 | . 5 . 2 6 10 15 3 4 . . . . Critical Kills 2 | . . . 1 . 1 . . . . . . . Critical Parts Destroyed 6 | . . . 1 1 4 . . . . . . . Critical Strikes 8 | . . . 2 1 5 . . . . . . . Smash 8 | . . . 2 1 5 . . . . . . . Melee Attacks 68 | . 6 . 7 11 40 4 . . . . . . Impact 68 | . 6 . 7 11 40 4 . . . . . . Slashing . | . . . . . . . . . . . . . Piercing . | . . . . . . . . . . . . . Sneak Attacks 7 | . . . . . 7 . . . . . . . Combat Hostiles . | . . . . . . . . . . . . . Follow-up Attacks . | . . . . . . . . . . . . . Damage Inflicted 3852 | . 290 . 186 472 1097 1047 69 691 . . . . Guns 260 | . 157 . 18 . . 85 . . . . . . Cannons . | . . . . . . . . . . . . . Explosions 2173 | . . . . 284 321 877 . 691 . . . . Melee 1350 | . 133 . 168 188 776 85 . . . . . . Ramming 69 | . . . . . . . 69 . . . . . Kinetic 175 | . 157 . 18 . . . . . . . . . Thermal 554 | . . . . . . 29 . 525 . . . . Explosive 1565 | . . . . 284 293 822 . 166 . . . . Electromagnetic 139 | . . . . . 28 111 . . . . . . Impact 1350 | . 133 . 168 188 776 85 . . . . . . Slashing . | . . . . . . . . . . . . . Piercing . | . . . . . . . . . . . . . Highest Corruption 2 | . . . . . . . 2 1 1 1 1 1 Average Corruption 1 | . . . . . . . 1 1 1 1 1 1 Corruption Purged . | . . . . . . . . . . . . . Corruption Blocked . | . . . . . . . . . . . . . Effects 4 | . . . . . . . 2 . 2 . . . Message Errors 2 | . . . . . . . 1 . 1 . . . Heat Flow Errors 2 | . . . . . . . 1 . 1 . . . Overload Shots . | . . . . . . . . . . . . . Overflow Damage 831 | . 50 . 41 65 299 137 5 234 . . . . Projectiles . | . . . . . . . . . . . . . Explosions 389 | . . . . . 32 123 . 234 . . . . Melee 442 | . 50 . 41 65 267 14 5 . . . . . Knockbacks 4 | . . . . 1 3 . . . . . . . Impact 4 | . . . . 1 3 . . . . . . . Kinetic . | . . . . . . . . . . . . . Secondary . | . . . . . . . . . . . . . Self-Inflicted Damage 468 | . . . . 14 39 37 31 347 . . . . Shots 8 | . . . . 1 1 1 . 5 . . . . Rammed 15 | . . . . . . . 15 . . . . . Targets Rammed 15 | . . . . . . . 15 . . . . . Kicked . | . . . . . . . . . . . . . Crushed . | . . . . . . . . . . . . . Highest Temperature 102 | . 6 . 9 5 10 13 100 60 102 . . . Average Temperature 15 | . 2 . 9 3 4 6 60 35 54 . . . Received Heat Transfer 243 | . . . 9 27 12 48 21 36 27 36 27 . Siege Activations . | . . . . . . . . . . . . . Martial Activations . | . . . . . . . . . . . . . Shielding Activations . | . . . . . . . . . . . . . Robots Disrupted . | . . . . . . . . . . . . . Combat Hostiles . | . . . . . . . . . . . . . Robots Corrupted 5 | . . . 1 1 1 1 1 . . . . . Combat Hostiles 4 | . . . 1 1 1 . 1 . . . . . Parts Fried 10 | . . . 2 . 5 1 2 . . . . . Impact Corruptions 20 | . 2 . 3 4 8 1 2 . . . . . Robots Melted . | . . . . . . . . . . . . . Combat Hostiles . | . . . . . . . . . . . . . Parts Melted . | . . . . . . . . . . . . . Heat Transferred 400 | . . . . . . 50 . 350 . . . . Parts Sabotaged . | . . . . . . . . . . . . . Parts Stolen . | . . . . . . . . . . . . . Parts Stripped . | . . . . . . . . . . . . . Power Chain Reactions 1 | . . . . . . 1 . . . . . . Alert | -11 -10 -10 -9 -8 -7 -6 -5 -4 -4 -4 -4 -4 ------- Run | Yrd Mat Min Mat Mat Fac Fac Fac Fac Ext Cet Arc Hub Maximum Alert Level 1 | . . . . 1 1 1 . 1 . . . . Low Security (%) 86 | 100 100 100 100 73 61 92 100 82 100 100 100 100 Level 1 13 | . . . . 26 38 7 . 17 . . . . Level 2 . | . . . . . . . . . . . . . Level 3 . | . . . . . . . . . . . . . Level 4 . | . . . . . . . . . . . . . Level 5 . | . . . . . . . . . . . . . High Security . | . . . . . . . . . . . . . Max Security . | . . . . . . . . . . . . . Peak Influence 380 | . 70 19 76 254 302 322 177 380 181 56 14 44 Initial 181 | . . 19 . 27 115 46 152 81 181 56 14 4 Average 97 | . 26 9 14 106 196 55 136 114 140 46 14 31 Influence Increases 1901 | . 144 . 93 307 380 384 175 369 . 9 . 40 Destroy 0b10 Robot/C 660 | . 120 . 60 140 120 100 40 80 . . . . Destroy 0b10 Robot/NC 55 | . . . 5 5 30 15 . . . . . . Destroy Leader 104 | . 20 . 12 20 20 22 . 10 . . . . Successful Hack 93 | . 4 . . . 40 . . . . 9 . 40 Disable Machine 270 | . . . . 30 30 105 . 105 . . . . Destroy Structure 209 | . . . 1 7 20 37 . 144 . . . . Partial Spotted 165 | . . . . 15 60 30 30 30 . . . . Lose Combat Pursuer 345 | . . . 15 90 60 75 105 . . . . . Influence Decreases 1897 | . 94 50 27 119 537 169 320 166 269 75 21 50 Entered New Map 771 | . . 31 . 39 139 51 160 86 189 45 21 10 Time Decay 698 | . 64 19 27 60 238 90 100 40 30 20 . 10 Lost Part 278 | . 30 . . 20 10 28 60 40 50 10 . 30 Purge Threat 150 | . . . . . 150 . . . . . . . Squads Dispatched 9 | . 1 . . 1 3 1 2 . . . . 1 Investigation 1 | . . . . . . . 1 . . . . . Extermination 2 | . . . . . 1 1 . . . . . . Reinforcement 6 | . 1 . . 1 2 . 1 . . . . 1 Assault . | . . . . . . . . . . . . . Garrison . | . . . . . . . . . . . . . Intercept . | . . . . . . . . . . . . . Searches Triggered . | . . . . . . . . . . . . . Construction Impeded . | . . . . . . . . . . . . . Haulers Reinforced . | . . . . . . . . . . . . . Active Scanning Responses . | . . . . . . . . . . . . . Cargo Convoy Interrupts . | . . . . . . . . . . . . . Stealth | -11 -10 -10 -9 -8 -7 -6 -5 -4 -4 -4 -4 -4 --------- Run | Yrd Mat Min Mat Mat Fac Fac Fac Fac Ext Cet Arc Hub Distress Signals 3 | . 1 . 1 . . . . . . 1 . . Communications Jammed . | . . . . . . . . . . . . . Distress Signals . | . . . . . . . . . . . . . Times Spotted 124 | . 10 13 9 15 19 8 17 7 8 5 4 9 Peak Tracking Total 16 | . 7 16 8 7 4 4 7 7 8 5 4 6 Tactical Retreats 13 | . . 1 1 2 4 3 2 . . . . . Traps | -11 -10 -10 -9 -8 -7 -6 -5 -4 -4 -4 -4 -4 ------- Run | Yrd Mat Min Mat Mat Fac Fac Fac Fac Ext Cet Arc Hub Traps Triggered 2 | . . . . . . . 1 . . . . 1 Indirectly . | . . . . . . . . . . . . . Trap Hack Attempts . | . . . . . . . . . . . . . Triggered . | . . . . . . . . . . . . . Disarmed . | . . . . . . . . . . . . . Reprogrammed . | . . . . . . . . . . . . . Reused . | . . . . . . . . . . . . . Traps Extracted . | . . . . . . . . . . . . . Installed . | . . . . . . . . . . . . . Triggered . | . . . . . . . . . . . . . Machines | -11 -10 -10 -9 -8 -7 -6 -5 -4 -4 -4 -4 -4 ---------- Run | Yrd Mat Min Mat Mat Fac Fac Fac Fac Ext Cet Arc Hub Machines Disabled 18 | . . . . 2 2 7 . 7 . . . . Max in Single Turn 5 | . . . . 2 2 5 . 4 . . . . Machines Repaired . | . . . . . . . . . . . . . Machines Dismantled . | . . . . . . . . . . . . . Machines Sabotaged . | . . . . . . . . . . . . . Overloaded Fab Kills . | . . . . . . . . . . . . . Hacking | -11 -10 -10 -9 -8 -7 -6 -5 -4 -4 -4 -4 -4 --------- Run | Yrd Mat Min Mat Mat Fac Fac Fac Fac Ext Cet Arc Hub Machines Accessed 24 | . 3 . 1 . 12 4 1 1 . 1 . 1 Terminals 13 | . 1 . . . 7 2 . 1 . 1 . 1 Fabricators 1 | . . . . . 1 . . . . . . . Repair Stations 1 | . . . . . 1 . . . . . . . Recycling Units 8 | . 2 . 1 . 2 2 1 . . . . . Scanalyzers 1 | . . . . . 1 . . . . . . . Garrison Access . | . . . . . . . . . . . . . Total Hacks 36 | . 5 . 2 . 16 5 2 1 . 1 . 4 Successful 17 | . 3 . 1 . 7 1 . 1 . 1 . 3 Failed 19 | . 2 . 1 . 9 4 2 . . . . 1 Catastrophic 5 | . . . . . 3 1 1 . . . . . Database Lockouts . | . . . . . . . . . . . . . Manual 1 | . . . . . . 1 . . . . . . Terminals 16 | . 1 . . . 7 2 . 1 . 1 . 4 Fabricators 2 | . . . . . 2 . . . . . . . Repair Stations 2 | . . . . . 2 . . . . . . . Recycling Units 14 | . 4 . 2 . 3 3 2 . . . . . Scanalyzers 2 | . . . . . 2 . . . . . . . Garrison Access . | . . . . . . . . . . . . . Terminal Hacks 11 | . 1 . . . 4 1 . 1 . 1 . 3 Record 1 | . . . . . . . . . . . . 1 Open Door 2 | . . . . . . . . 1 . 1 . . Branch Access Points 1 | . . . . . . . . . . . . 1 Emergency Access Points 4 | . 1 . . . 3 . . . . . . . Unreport Threat 1 | . . . . . 1 . . . . . . . Zone Layout 2 | . . . . . . 1 . . . . . 1 Fabricator Hacks 1 | . . . . . 1 . . . . . . . Network Status 1 | . . . . . 1 . . . . . . . Repair Station Hacks . | . . . . . . . . . . . . . Recycling Unit Hacks 4 | . 2 . 1 . 1 . . . . . . . Retrieve Matter 1 | . . . . . 1 . . . . . . . Retrieve Components 3 | . 2 . 1 . . . . . . . . . Scanalyzer 1 | . . . . . 1 . . . . . . . Insert Component 1 | . . . . . 1 . . . . . . . Garrison Access Hacks . | . . . . . . . . . . . . . Unauthorized Hacks . | . . . . . . . . . . . . . Terminals . | . . . . . . . . . . . . . Fabricators . | . . . . . . . . . . . . . Repair Stations . | . . . . . . . . . . . . . Recycling Units . | . . . . . . . . . . . . . Scanalyzers . | . . . . . . . . . . . . . Garrison Access . | . . . . . . . . . . . . . Data Cores Recovered . | . . . . . . . . . . . . . Used . | . . . . . . . . . . . . . Hacking Detections 14 | . 2 . 1 . 6 2 1 1 . . . 1 Full Trace Events 2 | . 1 . . . . . 1 . . . . . Feedback Events 1 | . . . . . . . 1 . . . . . Corruption 1 | . . . . . . . 1 . . . . . Feedback Blocked . | . . . . . . . . . . . . . Robot Schematics Acquired . | . . . . . . . . . . . . . Robots Built . | . . . . . . . . . . . . . Authchips . | . . . . . . . . . . . . . Time . | . . . . . . . . . . . . . Total Robot Build Rating . | . . . . . . . . . . . . . Part Schematics Acquired . | . . . . . . . . . . . . . Parts Built . | . . . . . . . . . . . . . Authchips . | . . . . . . . . . . . . . Time . | . . . . . . . . . . . . . Total Part Build Rating . | . . . . . . . . . . . . . Parts Repaired . | . . . . . . . . . . . . . Time . | . . . . . . . . . . . . . Parts Recycled . | . . . . . . . . . . . . . Recycled Matter . | . . . . . . . . . . . . . Retrieved Matter . | . . . . . . . . . . . . . Retrieved Components 6 | . 5 . 1 . . . . . . . . . Parts Scanalyzed . | . . . . . . . . . . . . . Part Schematics Acquired . | . . . . . . . . . . . . . Parts Damaged . | . . . . . . . . . . . . . Bothacking | -11 -10 -10 -9 -8 -7 -6 -5 -4 -4 -4 -4 -4 ------------ Run | Yrd Mat Min Mat Mat Fac Fac Fac Fac Ext Cet Arc Hub Used RIF Installer . | . . . . . . . . . . . . . Robots Hacked . | . . . . . . . . . . . . . Non-combat . | . . . . . . . . . . . . . Combat . | . . . . . . . . . . . . . Robot Hacks Applied . | . . . . . . . . . . . . . Relay Couplers Released . | . . . . . . . . . . . . . Fabnet Peak Effective % . | . . . . . . . . . . . . . Robots Rewired . | . . . . . . . . . . . . . Allies Hacked . | . . . . . . . . . . . . . Hacks Repelled . | . . . . . . . . . . . . . Allies | -11 -10 -10 -9 -8 -7 -6 -5 -4 -4 -4 -4 -4 -------- Run | Yrd Mat Min Mat Mat Fac Fac Fac Fac Ext Cet Arc Hub Total Allies . | . . . . . . . . . . . . . Largest Group . | . . . . . . . . . . . . . Highest-Rated Group . | . . . . . . . . . . . . . Highest-Rated Ally . | . . . . . . . . . . . . . Total Orders . | . . . . . . . . . . . . . Ally Attacks . | . . . . . . . . . . . . . Total Damage . | . . . . . . . . . . . . . Kills . | . . . . . . . . . . . . . Allies Corrupted . | . . . . . . . . . . . . . Allies Melted . | . . . . . . . . . . . . . Intel | -11 -10 -10 -9 -8 -7 -6 -5 -4 -4 -4 -4 -4 ------- Run | Yrd Mat Min Mat Mat Fac Fac Fac Fac Ext Cet Arc Hub Active Infowar (turns) 65 | . . . 62 . 3 . . . . . . . Sensors 62 | . . . 62 . . . . . . . . . ECM 3 | . . . . . 3 . . . . . . . Robot Analysis Total . | . . . . . . . . . . . . . Derelict Logs Recovered . | . . . . . . . . . . . . . Drone Launches . | . . . . . . . . . . . . . Drone Recoveries . | . . . . . . . . . . . . . Exploration | -11 -10 -10 -9 -8 -7 -6 -5 -4 -4 -4 -4 -4 ------------- Run | Yrd Mat Min Mat Mat Fac Fac Fac Fac Ext Cet Arc Hub Turns Passed 1946 | 150 221 56 126 137 503 284 214 82 77 44 17 35 Spaces Moved 3262 | 130 198 116 193 171 979 544 353 158 210 105 41 64 Core 41 | 41 . . . . . . . . . . . . Treads . | . . . . . . . . . . . . . Legs 131 | 88 43 . . . . . . . . . . . Wheels 1 | 1 . . . . . . . . . . . . Hover . | . . . . . . . . . . . . . Flight 3089 | . 155 116 193 171 979 544 353 158 210 105 41 64 Fastest Speed 22 | 50 37 37 34 31 27 24 27 22 28 40 40 40 Average Speed 36 | 98 57 37 34 31 27 37 29 31 36 40 40 40 Slowest Speed 235 | 120 120 37 37 106 99 177 37 37 235 40 40 40 Overloaded Moves . | . . . . . . . . . . . . . Propulsion Burnouts . | . . . . . . . . . . . . . Robots Hopped 2 | . . . . . . . . . 1 1 . . Potential Cave-ins 5 | . . . . . 5 . . . . . . . Cave-ins Triggered . | . . . . . . . . . . . . . Exploration Rate (%) 26 | 5 34 27 17 18 24 19 9 5 44 66 70 9 Regions Visited 12 Branch Regions 5 Pre-discovered Areas . | . . . . . . . . . . . . . Known Exits Taken 4 | . . . 1 1 1 1 . . . . . . Unknown Exits Taken 8 | 1 1 1 . . . . 1 1 1 1 1 . Scrap Searched . | . . . . . . . . . . . . . Spaces Dug 15 | . . . 1 1 13 . . . . . . . Terrain Destroyed 157 | . . . 1 6 24 45 . 81 . . . . Melee 15 | . . . 1 1 13 . . . . . . . Projectile . | . . . . . . . . . . . . . AOE 142 | . . . . 5 11 45 . 81 . . . . Terrain Rammed . | . . . . . . . . . . . . . Walls Destroyed . | . . . . . . . . . . . . . Machines Disabled . | . . . . . . . . . . . . . Actions | -11 -10 -10 -9 -8 -7 -6 -5 -4 -4 -4 -4 -4 --------- Run | Yrd Mat Min Mat Mat Fac Fac Fac Fac Ext Cet Arc Hub Total 3833 | 149 266 128 238 232 1144 603 461 183 210 106 40 73 Wait 281 | 8 10 13 5 37 76 24 85 15 . 1 . 7 Move 3246 | 129 197 115 192 170 978 543 352 157 207 102 40 64 Hop 2 | . . . . . . . . . 1 1 . . Pick Up 49 | 5 5 . 12 4 14 6 2 1 . . . . Fast Attach 23 | 6 2 . 2 . . 5 1 5 2 . . . Attach 28 | . 1 . 2 6 3 9 4 1 . . . 2 Detach 6 | . . . 1 1 1 1 . . . 2 . . Swap 31 | 1 5 . 9 1 12 1 . 2 . . . . Drop 36 | . 6 . 7 . 18 3 2 . . . . . Fire 48 | . 34 . 1 2 2 7 . 2 . . . . Melee 68 | . 6 . 7 11 40 4 . . . . . . Ram 15 | . . . . . . . 15 . . . . . Kick . | . . . . . . . . . . . . . Crush . | . . . . . . . . . . . . . Escape Stasis . | . . . . . . . . . . . . . Rewire . | . . . . . . . . . . . . . Trap . | . . . . . . . . . . . . . Miscellaneous . | . . . . . . . . . . . . . Route ------- -11/Scrapyard -10/Materials -10/Mines -9/Materials -8/Materials -7/Factory -6/Factory -5/Factory -4/Factory -4/Extension (discovered 2 exits: [*Res] / *Cet) -4/Cetus -4/Archives -4/Hub_04(d) (discovered 1 exit: [*Res]) History --------- Turn | Location | Event 70 | -11/Scrapyard | Discovered new exit (range 16) 151 | -11/Scrapyard | Entered Materials 316 | -10/Materials | Core integrity fell below 50% 327 | -10/Materials | Build established: Mutant 362 | -10/Materials | Discovered new exit (range 16) 372 | -10/Materials | Entered Mines 373 | -10/Mines | Assembled infested the area 378 | -10/Mines | Assisted by a Guerilla fighting off Assembled 398 | -10/Mines | Discovered new exit (range 6) 428 | -10/Mines | Entered Materials 428 | -9/Materials | Evolved 2 slots: Propulsion x1, Utility x1 542 | -9/Materials | Discovered new exit (range 10) 553 | -9/Materials | Identified exit to Materials 554 | -9/Materials | Entered another Materials area 554 | -8/Materials | Evolved 2 slots: Propulsion x1, Utility x1 670 | -8/Materials | Discovered new exit (range 13) 691 | -8/Materials | Identified exit to Factory 691 | -8/Materials | Entered Factory 691 | -7/Factory | Evolved 2 slots: Propulsion x1, Utility x1 914 | -7/Factory | Build established: Scavenger-Sprinter 932 | -7/Factory | Found Prototype Launcher 1186 | -7/Factory | Discovered new exit (range 9) 1194 | -7/Factory | Identified exit to Factory 1194 | -7/Factory | Entered another Factory area 1194 | -6/Factory | Evolved 2 slots: Propulsion x1, Utility x1 1212 | -6/Factory | Spotted B-75 Beast 1252 | -6/Factory | Identified Rocket Array 1296 | -6/Factory | Lost 9 parts (1p6n1u1w) 1462 | -6/Factory | Discovered new exit (range 13) 1477 | -6/Factory | Identified exit to Factory 1478 | -6/Factory | Entered another Factory area 1478 | -5/Factory | Evolved 2 slots: Power x1, Propulsion x1 1601 | -5/Factory | Spotted B-75 Beast 1666 | -5/Factory | Lost 4 parts (3u1w) 1689 | -5/Factory | Discovered new exit (range 11) 1692 | -5/Factory | Entered another Factory area 1692 | -4/Factory | Evolved 2 slots: Utility x1, Weapon x1 1696 | -4/Factory | Found Quantum Capacitor 1772 | -4/Factory | Discovered new exit (range 10) 1774 | -4/Factory | Entered Extension 1798 | -4/Extension | Spotted B-86 Titan 1799 | -4/Extension | Lost 4 parts (2n2w) 1800 | -4/Extension | Spotted B-86 Titan 1838 | -4/Extension | Discovered new exit (range 16) 1839 | -4/Extension | Discovered new exit (range 14) 1842 | -4/Extension | Core integrity fell below 50% 1851 | -4/Extension | Entered Cetus 1859 | -4/Cetus | Spotted Cetus Guard 1859 | -4/Cetus | Spotted Cetus Guard 1860 | -4/Cetus | Spotted Cetus Guard 1860 | -4/Cetus | Spotted Cetus Guard 1889 | -4/Cetus | Discovered new exit (range 16) 1895 | -4/Cetus | Lost 6 parts (1p4n1w) 1895 | -4/Cetus | Entered Archives 1903 | -4/Archives | Core integrity fell below 20% 1906 | -4/Archives | Discovered new exit (range 15) 1912 | -4/Archives | Entered Hub_04(d) 1926 | -4/Hub_04(d) | Discovered new exit (range 16) 1947 | -4/Hub_04(d) | Destroyed by B-60 Warrior with Heavy Mace Last Messages --------------- 01929_ ALERT: Hostiles spotted, dispatching reinforcements to Terminal H011. 01937_ Slug penetrates Wall. 01937_ Knocked back. 01938_ Acquired 3 matter. 01943_ Slug penetrates Wall. 01943_ K-01 Serf collects debris. 01944_ Slug penetrates Wall. 01946_ K-01 Serf collects debris. 01946_ Slug penetrates W-44 Eye. 01946_ Slug penetrates Wall. 01947_ Faulty Imp. Cesium-ion Thruster destroyed. 01947_ Knocked back. 01947_ Triggered Ambush Trap. 01947_ B-60 Warrior emerges from a hatch in the floor. 01947_ S-27 Virus emerges from a hatch in the floor. 01947_ Imp. Focal Shield destroyed. 01947_ Biomechanical Wings destroyed. 01947_ System corrupted by crushing effect (+2). 01947_ System corrupted by crushing effect (+1). Map ----- +----------------------------------------------------+ | | | | | ????????????????????????????????????????????????? | | ????????????????????????????????????????????????? | | ????????????????????????????????????????????????? | | ????????????????????????????????????????????????? | | ????????????????????????????????????????????????? | | ????????????????????????????????????????????????? | | ????????????????????????????????????????????????? | | ????????????????????????????????????????????????? | | ????????????????????????##########??????????????? | | ????????????????????????##[ #??????????????? | | ???????????????????????? # ###########????? | | ???????????????????????? # ## """"" #????? | | ???????????????????????? # ## ""T"" #????? | | ???????????????????????? # [ ## #????? | | ???????????????????????? # ## """" #????? | | ???????????????????????? # ## """" #????? | | ???????????????????????? # ## """" #????? | | ???????????????????????? # ## """" #????? | | ???????????????????????? # ## #????? | | ???????????????????###+### #" #????? | | ???????????######### ####+;;##;;#;#+######??? | | ?????????? h #??? | | ?????????? < bwb hk #??? | | ?????????? @s H #??? | | ?????????????????### ####+#########+######??? | | ???????????????????####### ## #???? | | ?????????????????????????# """ ## #???? | | ?????????????????????????# "T" ##!!! #???? | | ??????????????????????????? ??#!!! #???? | | ?????????????????????????? =?#!! #???? | | ?????????????????????????? ?# #???? | | ?????????????????????????# """" ## #???? | | ?????????????????????????# """" ## #???? | | ?????????????????????????? ??"" ############???? | | ???????????????????????????????? #??????????????? | | ???????????????????????????????? #??????????????? | | ????????????????????????????????????????????????? | | ????????????????????????????????????????????????? | | ????????????????????????????????????????????????? | | ????????????????????????????????????????????????? | | ????????????????????????????????????????????????? | | ????????????????????????????????????????????????? | | ????????????????????????????????????????????????? | | ????????????????????????????????????????????????? | | ????????????????????????????????????????????????? | | ????????????????????????????????????????????????? | | ????????????????????????????????????????????????? | | ????????????????????????????????????????????????? | +----------------------------------------------------+ Best States ------------- Heat Dissipation 43 Energy Generation 21 Energy Capacity 325 Matter Stores 268 Matter Capacity 300 Sight Range 16 Robot Scan Range 14 Terrain Scan Density 10 ECM Strength 2 Additional Mass Support 6 Resistance: KI 25 Resistance: EM 25 Weapon Shielding 33 Evasion (%) 65 Item Schematics ----------------- None Robot Schematics ------------------ None Fabricated ------------ Nothing Repaired ---------- Nothing Alien Tech Used ----------------- None Achievements -------------- Safety First Slippery One Challenges ------------ None Game ------ Seed ArchitectChromaticMultirail Manual? 0 Play Time 01:35:27 Cumulative 29.7 hours Start 2025.07.02 @ 00:36:59 End 2025.07.14 @ 18:41:20 Sessions 5 Manual Loads 0 Difficulty Rogue Special Mode None Game No. 29 Rogue 29 Adventurer 0 Explorer 0 Win Type - Total 0 Types 0/0/0/0/0/0/0/0/0/0 Lore% 10 Gallery% 30 Achievement% 23 Wizard Run 0 Options --------- Layout 0 ASCII 0 Keyboard 0 Movement Numpad Keybinds 0 Fullscreen 1 Font 24/X11 Map View 76x50 Zoom Use 0% Tactical HUD 1 Map Filters NONE Filters NONE Steam 1 RUN: 050d5a1b-0bb9-482e-b5b5-342762c75aa2